{"text_format":"1","workbook":"xlsx","n_sheets":1,"sheets":["Summary-Sheet"],"not_rendered":{"charts":3,"images":1,"macros":1,"external_links":0,"defined_names":23,"comments":0,"pivot_tables":0},"unopened":[],"bounds":{"document_bytes":16777216,"sheet_cells":100000,"rows_first":2000,"rows_last":500,"rows_between":2000,"halvings":0,"cell_chars":16384,"cell_head_chars":4096},"cells_cut":0,"cells_raw":0,"read":"whole","date_system":"1900"}

{"sheet":"Summary-Sheet","index":0,"n_rows":200,"n_cols":10,"rows_kept":200,"cut":false,"hidden":false,"merged":[[0,1,0,9]]}
[null,"Use this icon to update the summary sheet for data analysis"]
["Application Worksheet","Application Name","BV Score","Cost Score","Hardware Cost","Software Cost","O&M Cost","Staff Cost","Total Cost","BV/Cost Ratio"]
[null,null,null,null,null,null,null,null,{"$f":"SUM(E3:H3)","v":0},{"$f":"IFERROR(C3/D3,0)","v":0}]
[null,null,null,null,null,null,null,null,0,0]
[null,null,null,null,null,null,null,null,0,0]
[null,null,null,null,null,null,null,null,{"$f":"SUM(E6:H6)","v":0},{"$f":"IFERROR(C6/D6,0)","v":0}]
[null,null,null,null,null,null,null,null,0,0]
[null,null,null,null,null,null,null,null,0,0]
[null,null,null,null,null,null,null,null,0,0]
[null,null,null,null,null,null,null,null,0,0]
[null,null,null,null,null,null,null,null,0,0]
[null,null,null,null,null,null,null,null,0,0]
[null,null,null,null,null,null,null,null,0,0]
[null,null,null,null,null,null,null,null,0,0]
[null,null,null,null,null,null,null,null,0,0]
[null,null,null,null,null,null,null,null,0,0]
[null,null,null,null,null,null,null,null,0,0]
[null,null,null,null,null,null,null,null,0,0]
[null,null,null,null,null,null,null,null,0,0]
[null,null,null,null,null,null,null,null,0,0]
[null,null,null,null,null,null,null,null,0,0]
[null,null,null,null,null,null,null,null,0,0]
[null,null,null,null,null,null,null,null,0,0]
[null,null,null,null,null,null,null,null,0,0]
[null,null,null,null,null,null,null,null,0,0]
[null,null,null,null,null,null,null,null,0,0]
[null,null,null,null,null,null,null,null,0,0]
[null,null,null,null,null,null,null,null,0,0]
[null,null,null,null,null,null,null,null,0,0]
[null,null,null,null,null,null,null,null,0,0]
[null,null,null,null,null,null,null,null,0,0]
[null,null,null,null,null,null,null,null,0,0]
[null,null,null,null,null,null,null,null,0,0]
[null,null,null,null,null,null,null,null,0,0]
[null,null,null,null,null,null,null,null,0,0]
[null,null,null,null,null,null,null,null,0,0]
[null,null,null,null,null,null,null,null,0,0]
[null,null,null,null,null,null,null,null,0,0]
[null,null,null,null,null,null,null,null,0,0]
[null,null,null,null,null,null,null,null,0,0]
[null,null,null,null,null,null,null,null,0,0]
[null,null,null,null,null,null,null,null,0,0]
[null,null,null,null,null,null,null,null,0,0]
[null,null,null,null,null,null,null,null,0,0]
[null,null,null,null,null,null,null,null,0,0]
[null,null,null,null,null,null,null,null,0,0]
[null,null,null,null,null,null,null,null,0,0]
[null,null,null,null,null,null,null,null,0,0]
[null,null,null,null,null,null,null,null,0,0]
[null,null,null,null,null,null,null,null,0,0]
[null,null,null,null,null,null,null,null,0,0]
[null,null,null,null,null,null,null,null,0,0]
[null,null,null,null,null,null,null,null,0,0]
[null,null,null,null,null,null,null,null,0,0]
[null,null,null,null,null,null,null,null,0,0]
[null,null,null,null,null,null,null,null,0,0]
[null,null,null,null,null,null,null,null,0,0]
[null,null,null,null,null,null,null,null,0,0]
[null,null,null,null,null,null,null,null,0,0]
[null,null,null,null,null,null,null,null,0,0]
[null,null,null,null,null,null,null,null,0,0]
[null,null,null,null,null,null,null,null,0,0]
[null,null,null,null,null,null,null,null,0,0]
[null,null,null,null,null,null,null,null,0,0]
[null,null,null,null,null,null,null,null,0,0]
[null,null,null,null,null,null,null,null,0,0]
[null,null,null,null,null,null,null,null,0,0]
[null,null,null,null,null,null,null,null,{"$f":"SUM(E68:H68)","v":0},{"$f":"IFERROR(C68/D68,0)","v":0}]
[null,null,null,null,null,null,null,null,0,0]
[null,null,null,null,null,null,null,null,0,0]
[null,null,null,null,null,null,null,null,0,0]
[null,null,null,null,null,null,null,null,0,0]
[null,null,null,null,null,null,null,null,0,0]
[null,null,null,null,null,null,null,null,0,0]
[null,null,null,null,null,null,null,null,0,0]
[null,null,null,null,null,null,null,null,0,0]
[null,null,null,null,null,null,null,null,0,0]
[null,null,null,null,null,null,null,null,0,0]
[null,null,null,null,null,null,null,null,0,0]
[null,null,null,null,null,null,null,null,0,0]
[null,null,null,null,null,null,null,null,0,0]
[null,null,null,null,null,null,null,null,0,0]
[null,null,null,null,null,null,null,null,0,0]
[null,null,null,null,null,null,null,null,0,0]
[null,null,null,null,null,null,null,null,0,0]
[null,null,null,null,null,null,null,null,0,0]
[null,null,null,null,null,null,null,null,0,0]
[null,null,null,null,null,null,null,null,0,0]
[null,null,null,null,null,null,null,null,0,0]
[null,null,null,null,null,null,null,null,0,0]
[null,null,null,null,null,null,null,null,0,0]
[null,null,null,null,null,null,null,null,0,0]
[null,null,null,null,null,null,null,null,0,0]
[null,null,null,null,null,null,null,null,0,0]
[null,null,null,null,null,null,null,null,0,0]
[null,null,null,null,null,null,null,null,0,0]
[null,null,null,null,null,null,null,null,0,0]
[null,null,null,null,null,null,null,null,0,0]
[null,null,null,null,null,null,null,null,0,0]
[null,null,null,null,null,null,null,null,0,0]
[null,null,null,null,null,null,null,null,0,0]
[null,null,null,null,null,null,null,null,0,0]
[null,null,null,null,null,null,null,null,0,0]
[null,null,null,null,null,null,null,null,0,0]
[null,null,null,null,null,null,null,null,0,0]
[null,null,null,null,null,null,null,null,0,0]
[null,null,null,null,null,null,null,null,0,0]
[null,null,null,null,null,null,null,null,0,0]
[null,null,null,null,null,null,null,null,0,0]
[null,null,null,null,null,null,null,null,0,0]
[null,null,null,null,null,null,null,null,0,0]
[null,null,null,null,null,null,null,null,0,0]
[null,null,null,null,null,null,null,null,0,0]
[null,null,null,null,null,null,null,null,0,0]
[null,null,null,null,null,null,null,null,0,0]
[null,null,null,null,null,null,null,null,0,0]
[null,null,null,null,null,null,null,null,0,0]
[null,null,null,null,null,null,null,null,0,0]
[null,null,null,null,null,null,null,null,0,0]
[null,null,null,null,null,null,null,null,0,0]
[null,null,null,null,null,null,null,null,0,0]
[null,null,null,null,null,null,null,null,0,0]
[null,null,null,null,null,null,null,null,0,0]
[null,null,null,null,null,null,null,null,0,0]
[null,null,null,null,null,null,null,null,0,0]
[null,null,null,null,null,null,null,null,0,0]
[null,null,null,null,null,null,null,null,0,0]
[null,null,null,null,null,null,null,null,0,0]
[null,null,null,null,null,null,null,null,0,0]
[null,null,null,null,null,null,null,null,0,0]
[null,null,null,null,null,null,null,null,0,0]
[null,null,null,null,null,null,null,null,{"$f":"SUM(E132:H132)","v":0},{"$f":"IFERROR(C132/D132,0)","v":0}]
[null,null,null,null,null,null,null,null,0,0]
[null,null,null,null,null,null,null,null,0,0]
[null,null,null,null,null,null,null,null,0,0]
[null,null,null,null,null,null,null,null,0,0]
[null,null,null,null,null,null,null,null,0,0]
[null,null,null,null,null,null,null,null,0,0]
[null,null,null,null,null,null,null,null,0,0]
[null,null,null,null,null,null,null,null,0,0]
[null,null,null,null,null,null,null,null,0,0]
[null,null,null,null,null,null,null,null,0,0]
[null,null,null,null,null,null,null,null,0,0]
[null,null,null,null,null,null,null,null,0,0]
[null,null,null,null,null,null,null,null,0,0]
[null,null,null,null,null,null,null,null,0,0]
[null,null,null,null,null,null,null,null,0,0]
[null,null,null,null,null,null,null,null,0,0]
[null,null,null,null,null,null,null,null,0,0]
[null,null,null,null,null,null,null,null,0,0]
[null,null,null,null,null,null,null,null,0,0]
[null,null,null,null,null,null,null,null,0,0]
[null,null,null,null,null,null,null,null,0,0]
[null,null,null,null,null,null,null,null,0,0]
[null,null,null,null,null,null,null,null,0,0]
[null,null,null,null,null,null,null,null,0,0]
[null,null,null,null,null,null,null,null,0,0]
[null,null,null,null,null,null,null,null,0,0]
[null,null,null,null,null,null,null,null,0,0]
[null,null,null,null,null,null,null,null,0,0]
[null,null,null,null,null,null,null,null,0,0]
[null,null,null,null,null,null,null,null,0,0]
[null,null,null,null,null,null,null,null,0,0]
[null,null,null,null,null,null,null,null,0,0]
[null,null,null,null,null,null,null,null,0,0]
[null,null,null,null,null,null,null,null,0,0]
[null,null,null,null,null,null,null,null,0,0]
[null,null,null,null,null,null,null,null,0,0]
[null,null,null,null,null,null,null,null,0,0]
[null,null,null,null,null,null,null,null,0,0]
[null,null,null,null,null,null,null,null,0,0]
[null,null,null,null,null,null,null,null,0,0]
[null,null,null,null,null,null,null,null,0,0]
[null,null,null,null,null,null,null,null,0,0]
[null,null,null,null,null,null,null,null,0,0]
[null,null,null,null,null,null,null,null,0,0]
[null,null,null,null,null,null,null,null,0,0]
[null,null,null,null,null,null,null,null,0,0]
[null,null,null,null,null,null,null,null,0,0]
[null,null,null,null,null,null,null,null,0,0]
[null,null,null,null,null,null,null,null,0,0]
[null,null,null,null,null,null,null,null,0,0]
[null,null,null,null,null,null,null,null,0,0]
[null,null,null,null,null,null,null,null,0,0]
[null,null,null,null,null,null,null,null,0,0]
[null,null,null,null,null,null,null,null,0,0]
[null,null,null,null,null,null,null,null,0,0]
[null,null,null,null,null,null,null,null,0,0]
[null,null,null,null,null,null,null,null,0,0]
[null,null,null,null,null,null,null,null,0,0]
[null,null,null,null,null,null,null,null,0,0]
[null,null,null,null,null,null,null,null,0,0]
[null,null,null,null,null,null,null,null,0,0]
[null,null,null,null,null,null,null,null,0,0]
[null,null,null,null,null,null,null,null,0,0]
[null,null,null,null,null,null,null,null,{"$f":"SUM(E196:H196)","v":0},{"$f":"IFERROR(C196/D196,0)","v":0}]
[null,null,null,null,null,null,null,null,0,0]
[null,null,null,null,null,null,null,null,0,0]
[null,null,null,null,null,null,null,null,0,0]
[null,"Please copy cell formulas after this row",null,null,null,null,null,null,0,0]